bitfinex/quotes_BTCUSD_20220226
["timestamp","ask_amount","ask_price","bid_price","bid_amount"]
[1645914246183,17.022374,39270.0,39269.0,3.64823771]
[1645914246586,17.022374,39270.0,39269.0,3.3800747]
[1645914246787,17.022374,39270.0,39269.0,3.64823771]
[1645914247387,17.022374,39270.0,39269.0,3.3800747]
[1645914247688,17.022374,39270.0,39265.0,0.327174]
[1645914247689,17.09862146,39270.0,39262.0,0.127385]
[1645914247892,0.41565476,39265.0,39264.0,0.32361615]
[1645914248097,0.41565476,39265.0,39264.0,0.21509663]
[1645914248098,0.51565476,39265.0,39264.0,0.21509663]
[1645914248291,0.51565476,39265.0,39260.0,0.32261615]
[1645914248491,0.07624746,39261.0,39258.0,0.26888532]
[1645914248690,0.07624746,39259.0,39258.0,0.00035676]
[1645914249736,0.07624746,39259.0,39252.0,0.13061896]
[1645914249934,0.07624746,39259.0,39257.0,0.10025676]
[1645914250136,0.17342694,39255.0,39252.0,0.13061896]
[1645914250336,0.07624746,39254.0,39252.0,0.13061896]
[1645914251137,0.07624746,39254.0,39253.0,0.0577]
[1645914255086,0.07624746,39254.0,39253.0,0.12140916]
[1645914255688,0.2496744,39255.0,39253.0,0.06370916]
[1645914255891,0.2496744,39255.0,39253.0,0.12130916]
[1645914256189,0.2496744,39255.0,39253.0,0.0576]
[1645914256389,0.2496744,39255.0,39253.0,0.121307]
[1645914256789,0.2346744,39255.0,39253.0,0.171307]
[1645914257235,0.2346744,39255.0,39254.0,0.05]
[1645914258537,0.15842694,39255.0,39254.0,0.81424]
[1645914259132,0.15842694,39255.0,39254.0,0.877942]
[1645914259333,0.15842694,39255.0,39254.0,1.862312]
[1645914259832,0.15842694,39255.0,39254.0,2.08619969]
[1645914260031,0.15842694,39255.0,39254.0,1.31179969]
[1645914262794,0.15842694,39255.0,39254.0,2.08619969]
[1645914263395,0.15842694,39255.0,39254.0,2.08574679]
[1645914264845,0.15842694,39255.0,39254.0,1.30117679]
[1645914265243,0.15842694,39255.0,39254.0,2.07557679]
[1645914265542,0.15842694,39255.0,39254.0,1.30117679]
[1645914265943,0.15842694,39255.0,39254.0,1.0772891]
[1645914267946,0.15842694,39255.0,39254.0,1.2486111]
[1645914268148,0.15842694,39255.0,39254.0,1.0772891]
[1645914269385,0.15842694,39255.0,39254.0,1.26409046]
[1645914269783,0.15842694,39255.0,39254.0,1.0772891]
[1645914270383,0.15842694,39255.0,39254.0,0.8774891]
[1645914270782,0.15842694,39255.0,39254.0,1.07329455]
[1645914272642,0.15842694,39255.0,39254.0,1.32419455]
[1645914275446,0.15842694,39255.0,39254.0,1.12439455]
[1645914276489,0.15842694,39255.0,39254.0,1.32419455]
[1645914277092,0.15842694,39255.0,39254.0,2.09859455]
[1645914277693,0.15842694,39255.0,39254.0,1.32419455]
[1645914278092,0.15842694,39255.0,39254.0,2.09859455]
[1645914279193,0.15842694,39255.0,39254.0,2.34849455]
[1645914279843,0.1245,39263.0,39257.0,0.127397]
[1645914280052,0.1954,39267.0,39258.0,0.94267394]
[1645914280053,0.00035721,39264.0,39258.0,0.94267394]
[1645914280344,0.00035721,39264.0,39258.0,0.99267394]
[1645914280546,0.00035721,39264.0,39258.0,1.19247394]
[1645914280745,0.00035721,39264.0,39263.0,0.1634624]
[1645914280943,0.07624746,39267.0,39263.0,0.81518]
[1645914281247,0.07624746,39267.0,39263.0,0.878875]
[1645914281248,0.00035723,39264.0,39263.0,0.878875]
[1645914281443,0.00035723,39264.0,39263.0,0.978875]
[1645914282145,0.3648,39269.0,39263.0,0.978875]
[1645914282345,0.00035723,39265.0,39263.0,0.978875]
[1645914282746,0.07660469,39265.0,39263.0,0.978875]
[1645914283148,0.00035723,39265.0,39263.0,0.978875]
[1645914283493,0.00035723,39266.0,39263.0,0.978875]
[1645914284292,0.07624746,39265.0,39263.0,0.978875]
[1645914285094,0.00035723,39266.0,39263.0,0.978875]
[1645914285700,0.07624746,39267.0,39263.0,0.978875]
[1645914285897,0.00035723,39266.0,39263.0,0.978875]
[1645914286797,0.07624746,39266.0,39263.0,0.978875]
[1645914287244,0.07660469,39266.0,39263.0,0.978875]
[1645914288041,0.07624746,39267.0,39263.0,0.978875]
[1645914288246,0.00035755,39266.0,39263.0,0.978875]
[1645914288642,0.07660501,39266.0,39263.0,0.978875]
[1645914289243,0.07624746,39266.0,39263.0,0.978875]
[1645914289442,0.07660501,39266.0,39263.0,0.978875]
[1645914290244,0.00035755,39266.0,39263.0,0.978875]
[1645914290445,0.07624746,39264.0,39263.0,0.978875]
[1645914290644,0.00035755,39266.0,39263.0,0.978875]
[1645914290847,0.07660501,39266.0,39263.0,1.31287998]
[1645914291296,0.07660501,39266.0,39263.0,0.978875]
[1645914291693,0.07624746,39266.0,39263.0,0.978875]
[1645914291895,0.07660466,39266.0,39263.0,0.978875]
[1645914292694,0.07660466,39266.0,39263.0,1.31287998]
[1645914292895,0.07624746,39266.0,39263.0,1.31287998]
[1645914293096,0.07638899,39266.0,39263.0,1.31287998]
[1645914293694,0.07638899,39266.0,39263.0,0.978875]
[1645914293896,0.07638899,39266.0,39263.0,1.31287998]
[1645914294095,0.07624746,39266.0,39263.0,0.978875]
[1645914294294,0.07638899,39266.0,39263.0,1.31287998]
[1645914294496,0.07638899,39266.0,39263.0,0.978875]
[1645914295343,0.07624746,39266.0,39263.0,0.978875]
[1645914295543,0.07662892,39266.0,39263.0,0.978875]
[1645914296345,0.20896591,39266.0,39263.0,0.978875]
[1645914296544,0.07624746,39264.0,39263.0,0.978875]
[1645914297243,0.20894009,39266.0,39263.0,0.978875]
[1645914297444,0.0766031,39266.0,39263.0,0.978875]
[1645914297644,0.07624746,39266.0,39263.0,0.978875]
[1645914297845,0.07624746,39264.0,39263.0,0.978875]
[1645914300394,0.07624746,39264.0,39263.0,0.927775]
[1645914300794,0.00014154,39265.0,39263.0,0.927775]
[1645914301297,0.07624746,39266.0,39263.0,0.927775]
[1645914301594,0.07660518,39266.0,39263.0,0.978875]
[1645914301995,0.07660518,39266.0,39263.0,0.9784237]
[1645914302243,17.01773172,39270.0,39263.0,0.9784237]
[1645914302647,0.07624746,39265.0,39263.0,0.9784237]
[1645914305743,16.99436095,39270.0,39263.0,0.9273237]
[1645914305994,16.99436095,39270.0,39263.0,0.9910157]
[1645914306795,16.99436095,39270.0,39263.0,1.17184816]
[1645914308496,16.99436095,39270.0,39263.0,0.9910157]
[1645914309499,16.99436095,39270.0,39263.0,1.18509629]
[1645914309944,16.99474282,39270.0,39263.0,1.18509629]
[1645914310447,16.99474282,39270.0,39263.0,1.19526629]
[1645914310946,16.99436095,39270.0,39265.0,0.12737968]
[1645914311148,16.99474282,39270.0,39269.0,0.1998]
[1645914311348,16.99474282,39270.0,39267.0,0.06369]
[1645914311349,0.3241381,39268.0,39267.0,0.06369]
[1645914311552,0.3241381,39268.0,39267.0,0.11479]
[1645914311945,0.3241381,39268.0,39267.0,0.36469]
[1645914312748,0.3241381,39268.0,39267.0,0.301]
[1645914313150,0.3241381,39268.0,39267.0,0.351]
[1645914314224,0.3241381,39268.0,39267.0,2.1393]
[1645914314416,0.3241381,39268.0,39267.0,2.16618005]
[1645914314813,0.3241381,39268.0,39267.0,1.60697188]
[1645914315013,0.3241381,39268.0,39267.0,1.39178005]
[1645914315612,0.3241381,39268.0,39267.0,1.7680206]
[1645914316024,0.3241381,39268.0,39267.0,1.93959225]
[1645914316414,0.3241381,39268.0,39267.0,1.53647165]
[1645914316614,0.3241381,39268.0,39267.0,1.3649]
[1645914317651,0.3241381,39268.0,39267.0,1.54109143]
[1645914317847,0.3241381,39268.0,39267.0,1.48999143]
[1645914318448,0.3241381,39268.0,39267.0,1.54109143]
[1645914322194,0.3241381,39268.0,39267.0,2.31549143]
[1645914322793,0.3241381,39268.0,39267.0,2.34080143]
[1645914322992,0.3241381,39268.0,39267.0,2.16461]
[1645914323194,0.3241381,39268.0,39267.0,1.39021]
[1645914323794,0.3241381,39268.0,39267.0,1.33911]
[1645914324093,0.3241381,39268.0,39267.0,1.52749011]
[1645914324294,0.3241381,39268.0,39267.0,1.57859011]
[1645914324496,0.3241381,39268.0,39267.0,1.39021]
[1645914326940,0.3241381,39268.0,39267.0,1.2649]
[1645914328142,0.3241381,39268.0,39267.0,1.3149]
[1645914328342,0.3241381,39268.0,39267.0,1.3649]
[1645914330898,0.3241381,39268.0,39267.0,1.57328688]
[1645914331900,0.3241381,39268.0,39267.0,1.3649]
[1645914332107,0.3241381,39268.0,39267.0,2.1393]
[1645914332357,0.3241381,39268.0,39267.0,2.16461]
[1645914332943,0.3241381,39268.0,39267.0,2.37650069]
[1645914335547,0.32407562,39268.0,39267.0,2.37650069]
[1645914337993,0.32407562,39268.0,39267.0,1.60210069]
[1645914341548,0.32407562,39268.0,39267.0,2.37650069]
[1645914341749,0.32407562,39268.0,39267.0,1.29021]
[1645914341954,0.6549362,39268.0,39267.0,1.2138]
[1645914342154,0.6549362,39268.0,39267.0,0.9639]
[1645914342757,0.87973912,39268.0,39267.0,0.9639]
[1645914342953,0.54887854,39268.0,39267.0,0.9639]
[1645914343606,0.54887854,39268.0,39267.0,1.0639]
[1645914344806,0.54887854,39268.0,39267.0,0.9639]
[1645914346206,0.54887854,39268.0,39267.0,1.0639]
[1645914348347,0.54887854,39268.0,39256.0,0.17530104]
[1645914348348,1.42362187,39268.0,39256.0,0.17530104]
[1645914348548,1.42362187,39268.0,39254.0,0.02547]
[1645914348549,0.33086058,39257.0,39250.0,0.691086]
[1645914348755,0.1,39253.0,39250.0,0.5]
[1645914348952,0.08354,39257.0,39247.0,0.015]
[1645914348953,0.43086058,39251.0,39247.0,0.015]
[1645914349155,0.43086058,39248.0,39243.0,0.03763022]
[1645914349353,0.43086058,39244.0,39236.0,0.04]
[1645914349549,0.1,39239.0,39236.0,0.04]
[1645914349747,0.33086058,39237.0,39230.0,0.95842299]
[1645914349948,0.33086058,39237.0,39229.0,0.0031]
[1645914350248,0.43086058,39237.0,39223.0,0.11419]
[1645914350456,0.43086058,39237.0,39223.0,0.0041]
[1645914350457,0.18392819,39230.0,39223.0,0.0041]
[1645914350851,0.33086058,39233.0,39223.0,0.0041]
[1645914351107,0.1,39234.0,39223.0,0.0041]
[1645914351710,0.22497206,39231.0,39223.0,0.0041]
[1645914352314,0.54131824,39231.0,39223.0,0.0041]
[1645914352712,0.41634618,39230.0,39223.0,0.0041]
[1645914353713,0.1,39230.0,39223.0,0.0041]
[1645914353913,0.22497206,39231.0,39223.0,0.0041]
[1645914353914,0.1,39228.0,39223.0,0.0041]
[1645914354311,0.1,39228.0,39226.0,0.00348373]
[1645914355349,0.1,39228.0,39226.0,0.0031]
[1645914355547,0.1,39228.0,39226.0,0.00348373]
[1645914356555,0.1,39228.0,39226.0,0.0031]
[1645914357452,0.22497206,39231.0,39226.0,0.0031]
[1645914357853,0.3157659,39230.0,39226.0,0.0031]
[1645914358255,0.147,39229.0,39226.0,0.0031]
[1645914358513,0.0071,39226.0,39223.0,0.0041]
[1645914359099,0.0071,39226.0,39224.0,0.00348346]
[1645914359299,0.0081,39226.0,39224.0,0.00348346]
[1645914359701,0.0081,39226.0,39225.0,0.1114]
[1645914360600,0.0081,39226.0,39225.0,0.001]
[1645914360807,0.0071,39226.0,39225.0,0.001]
[1645914361301,0.0081,39226.0,39225.0,0.001]
[1645914362456,0.0071,39226.0,39225.0,0.001]
[1645914363058,0.0071,39226.0,39222.0,0.002]
[1645914363059,0.00298372,39223.0,39222.0,0.002]
[1645914364659,0.17532141,39223.0,39222.0,0.002]
[1645914364860,0.00298372,39223.0,39222.0,0.002]
[1645914366295,0.00298372,39223.0,39215.0,0.002]
[1645914366495,0.31874962,39223.0,39216.0,0.76494]
[1645914367195,0.00298372,39223.0,39216.0,0.76494]
[1645914367397,0.31874962,39223.0,39216.0,0.76494]
[1645914367596,0.7744,39222.0,39218.0,0.00036919]
[1645914367795,0.49108731,39223.0,39218.0,0.00036919]
[1645914367996,0.17532141,39223.0,39218.0,0.00036919]
[1645914368196,0.31746242,39223.0,39218.0,0.00036919]
[1645914368401,0.74139198,39219.0,39218.0,0.00036919]
[1645914368705,1.30697068,39219.0,39216.0,0.76494]
[1645914369202,0.97905426,39217.0,39216.0,0.24802445]
[1645914369400,1.34463296,39217.0,39216.0,0.24802445]
[1645914369597,0.74257065,39217.0,39216.0,0.24802445]
[1645914369859,0.42809195,39217.0,39216.0,0.24802445]
[1645914370060,0.25575426,39217.0,39215.0,0.00236921]
[1645914370261,0.7744,39216.0,39215.0,0.00236921]
[1645914370456,0.8255,39216.0,39215.0,0.00236921]
[1645914370756,0.2511,39216.0,39212.0,0.0041]
[1645914370958,0.22343769,39216.0,39212.0,0.0041]
[1645914371158,0.8255,39216.0,39201.0,0.0102]
[1645914371362,1.13715926,39216.0,39200.0,0.1]
[1645914371557,1.30949695,39216.0,39199.0,0.0102]
[1645914371759,0.06380204,39214.0,39199.0,0.0102]
[1645914371961,0.31165926,39213.0,39199.0,0.0102]
[1645914372256,0.18917903,39211.0,39199.0,0.0102]
[1645914372457,0.18917903,39211.0,39207.0,0.00024165]
[1645914372856,0.96357903,39211.0,39207.0,0.00024165]
[1645914373508,0.06380874,39209.0,39207.0,0.00024165]
[1645914374406,0.17233769,39210.0,39207.0,0.00024165]
[1645914374606,0.50083829,39211.0,39202.0,0.001]
[1645914374803,0.50083829,39211.0,39206.0,0.00038357]
[1645914375304,0.18917903,39211.0,39206.0,0.00038357]
[1645914375704,0.18917903,39211.0,39202.0,0.001]
[1645914375903,0.18917903,39211.0,39207.0,0.00024159]
[1645914376905,0.18917903,39211.0,39202.0,0.001]
[1645914377109,0.18917903,39211.0,39207.0,0.00024158]
[1645914377350,0.06380404,39213.0,39207.0,0.00024158]
[1645914377549,0.48399695,39214.0,39207.0,0.00024158]
[1645914378145,0.68144553,39214.0,39202.0,0.002]
[1645914378346,0.50910784,39214.0,39209.0,0.00024157]
[1645914379052,0.06947488,39201.0,39200.0,0.0102]
[1645914380251,0.0004537,39208.0,39200.0,0.0102]
[1645914380461,0.28853769,39213.0,39207.0,0.1]
[1645914380462,0.17233769,39213.0,39207.0,0.1]
[1645914380654,0.1239,39218.0,39209.0,0.1]
[1645914380853,0.17233769,39222.0,39210.0,0.36160386]
[1645914381106,0.17233769,39222.0,39210.0,0.46160386]
[1645914381306,0.1171,39225.0,39217.0,0.23074294]
[1645914381511,0.3983,39226.0,39217.0,0.23074294]
[1645914381709,0.57063769,39226.0,39217.0,0.23074294]
[1645914381904,0.3983,39226.0,39217.0,0.23074294]
[1645914382107,0.3983,39226.0,39218.0,0.31050386]
[1645914382504,0.3983,39226.0,39217.0,0.28074294]
[1645914383105,0.3983,39226.0,39218.0,0.30964824]
[1645914383307,0.00038355,39223.0,39218.0,0.30964824]
[1645914384005,0.00038355,39223.0,39218.0,0.40964824]
[1645914384208,0.0071,39226.0,39225.0,0.18593733]
[1645914386148,0.0071,39226.0,39225.0,0.23593733]
[1645914386351,0.0071,39226.0,39222.0,0.05]
[1645914386755,0.0071,39226.0,39225.0,0.1]
[1645914386951,0.00748353,39226.0,39225.0,0.1]
[1645914387151,0.00748353,39226.0,39225.0,0.2]
[1645914387353,0.00748353,39226.0,39225.0,0.41019543]
[1645914387552,0.00748353,39226.0,39225.0,0.46129543]
[1645914387750,0.0071,39226.0,39225.0,0.69659731]
[1645914387951,0.00691001,39226.0,39225.0,0.69659731]
[1645914389003,0.00691001,39226.0,39225.0,0.09151865]
[1645914389411,0.00144471,39233.0,39225.0,0.16798865]
[1645914389611,0.00144471,39233.0,39232.0,0.02537]
[1645914389807,0.00144471,39233.0,39232.0,0.35807942]
[1645914390006,0.00144471,39233.0,39232.0,1.12274942]
[1645914390206,0.015,39250.0,39232.0,1.12274942]
[1645914390207,0.015,39250.0,39232.0,1.28647642]
[1645914390404,0.015,39250.0,39233.0,0.21861023]
[1645914390704,0.015,39250.0,39235.0,0.02537]
[1645914390903,0.015,39250.0,39235.0,0.55836384]
[1645914391102,0.015,39250.0,39235.0,0.60836384]
[1645914391303,0.0001,39236.0,39235.0,0.60836384]
[1645914391506,0.0001,39236.0,39235.0,0.70836384]
[1645914392113,0.0001,39236.0,39235.0,1.47298384]
[1645914392551,0.0001,39236.0,39235.0,2.49728384]
[1645914393448,0.0001,39236.0,39235.0,2.44728384]
[1645914393647,0.0001,39236.0,39235.0,3.08568384]
[1645914395151,0.0001,39236.0,39235.0,3.14894393]
[1645914395350,0.0001,39236.0,39235.0,2.18636942]
[1645914395548,0.0001,39236.0,39235.0,2.96076942]
[1645914395996,0.0001,39236.0,39235.0,2.18636942]
[1645914396196,0.0001,39236.0,39235.0,2.37721289]
[1645914396597,0.0001,39236.0,39235.0,3.15161289]
[1645914399849,0.0001,39236.0,39235.0,2.37721289]
[1645914401146,0.0001,39236.0,39235.0,3.15161289]
[1645914401547,0.0001,39236.0,39235.0,2.37721289]
[1645914402352,0.01018,39257.0,39243.0,0.063717]
[1645914402551,0.00153402,39245.0,39244.0,0.16472003]
[1645914402749,0.00153402,39245.0,39244.0,0.1011]
[1645914402950,0.00153402,39245.0,39244.0,0.1511]
[1645914403350,0.00153402,39245.0,39244.0,0.36300101]
[1645914403598,0.01018,39258.0,39244.0,0.36300101]
[1645914403795,0.00038352,39246.0,39245.0,0.30515772]
[1645914403993,0.00038352,39246.0,39245.0,0.0511]
[1645914404597,0.01018,39258.0,39245.0,0.0511]
[1645914404793,0.01018,39258.0,39246.0,0.30515772]
[1645914404996,0.01018,39258.0,39244.0,0.61705873]
[1645914404997,0.00038352,39247.0,39244.0,0.61705873]
[1645914405196,0.00038352,39247.0,39246.0,0.0511]
[1645914405797,0.22925581,39259.0,39246.0,0.0511]
[1645914406197,0.00038351,39248.0,39246.0,0.0511]
[1645914407248,0.1,39258.0,39246.0,0.0511]
[1645914407249,0.20711161,39253.0,39246.0,0.0511]
[1645914407450,0.00038351,39249.0,39246.0,0.0511]
[1645914408347,0.1,39258.0,39246.0,0.0511]
[1645914408548,0.00037632,39249.0,39246.0,0.0511]
[1645914409551,0.18483207,39256.0,39246.0,0.0511]
[1645914409850,0.00037632,39249.0,39246.0,0.0511]
[1645914410649,0.1,39258.0,39246.0,0.0511]
[1645914410852,0.02018,39259.0,39247.0,0.30515772]
[1645914411115,0.00037632,39249.0,39248.0,0.0511]
[1645914411313,0.00037632,39249.0,39248.0,0.86547]
[1645914411812,0.01,39259.0,39248.0,0.86547]
[1645914412015,0.01,39259.0,39256.0,0.20248017]
[1645914412215,0.01,39259.0,39257.0,0.0511]
[1645914416352,0.01,39259.0,39257.0,0.26043023]
[1645914422257,0.01,39259.0,39257.0,0.0511]
[1645914422458,0.01,39259.0,39252.0,0.01117]
[1645914422754,0.01,39259.0,39253.0,0.76427]
[1645914422953,0.01,39259.0,39253.0,0.81537]
[1645914423355,0.01,39259.0,39253.0,1.03241952]
[1645914424156,0.01,39259.0,39253.0,0.81537]
[1645914424157,0.00036899,39258.0,39253.0,0.81537]
[1645914424358,0.00036899,39258.0,39253.0,0.81427]
[1645914424559,0.00036899,39258.0,39253.0,0.76427]
[1645914425156,0.01,39259.0,39253.0,0.76427]
[1645914425356,0.00036899,39257.0,39253.0,0.76419334]
[1645914426402,0.01,39259.0,39253.0,0.76419334]
[1645914426607,0.00035879,39257.0,39253.0,0.76419334]
[1645914427605,0.01,39259.0,39253.0,0.76419334]
[1645914427804,0.00035879,39257.0,39253.0,0.76419334]
[1645914428807,0.20627814,39259.0,39253.0,0.76419334]
[1645914429004,0.00035879,39257.0,39253.0,0.76419334]
[1645914429855,0.20627814,39259.0,39253.0,0.76419334]
[1645914430254,0.00035948,39257.0,39253.0,0.76419334]
[1645914431055,0.01,39259.0,39253.0,0.76419334]
[1645914431455,0.00035948,39257.0,39253.0,0.76419334]
[1645914432256,0.01,39259.0,39253.0,0.76419334]
[1645914432456,0.01,39259.0,39253.0,0.18999817]
[1645914432757,0.00035948,39257.0,39253.0,0.23999817]
[1645914433599,0.01,39259.0,39253.0,0.23999817]
[1645914433805,0.00035943,39257.0,39253.0,0.23999817]
[1645914434802,0.22233647,39259.0,39253.0,0.23999817]
[1645914434999,0.00035943,39257.0,39253.0,0.23999817]
[1645914435501,0.22202063,39259.0,39253.0,0.23999817]
[1645914435700,0.22202063,39259.0,39253.0,0.18999817]
[1645914437851,0.21233647,39258.0,39253.0,0.18999817]
[1645914440757,0.78444358,39259.0,39242.0,0.23426117]
[1645914440758,0.21233647,39257.0,39242.0,0.23426117]
[1645914440996,0.21233647,39257.0,39243.0,0.1011]
[1645914441604,0.22876469,39255.0,39244.0,0.20090855]
[1645914441798,0.22876469,39255.0,39245.0,0.0511]
[1645914445549,0.22876469,39255.0,39245.0,0.164819]
[1645914446951,0.11233647,39257.0,39246.0,0.063717]
[1645914447154,0.11233647,39257.0,39247.0,0.30753744]
[1645914447352,0.11233647,39257.0,39248.0,0.0511]
[1645914447553,0.00968416,39259.0,39248.0,0.1011]
[1645914447752,0.00968416,39259.0,39249.0,0.3070011]
[1645914447952,0.00968416,39259.0,39252.0,0.21999646]
[1645914448152,0.00968416,39259.0,39250.0,0.3002876]
[1645914448153,0.01005335,39259.0,39250.0,0.3002876]
[1645914448352,0.01005335,39259.0,39250.0,0.3502876]
[1645914449000,0.01005335,39259.0,39251.0,0.3070011]
[1645914449199,0.00968416,39259.0,39251.0,0.3581011]
[1645914449412,0.01005335,39259.0,39251.0,0.3581011]
[1645914450399,0.00968416,39259.0,39251.0,0.3581011]
[1645914450601,0.01005335,39259.0,39251.0,0.3581011]
[1645914451000,0.01005335,39259.0,39251.0,0.0511]
[1645914451203,0.01005335,39259.0,39251.0,0.3581011]
[1645914451604,0.00968416,39259.0,39251.0,0.3581011]
[1645914451805,0.01004313,39259.0,39252.0,0.76423]
[1645914452010,0.01004313,39259.0,39252.0,0.81423]
[1645914452254,0.01004313,39259.0,39252.0,0.86423]
[1645914452758,0.00968416,39259.0,39252.0,0.86423]
[1645914452951,0.01004314,39259.0,39252.0,0.86423]
[1645914453753,0.01004314,39259.0,39254.0,0.17468901]
[1645914453955,0.00968416,39259.0,39254.0,0.17468901]
[1645914454254,0.00684826,39259.0,39254.0,0.17468901]
[1645914455054,0.00648928,39259.0,39254.0,0.17468901]
[1645914455454,0.00684895,39259.0,39254.0,0.17468901]
[1645914456309,0.00648928,39259.0,39254.0,0.17468901]
[1645914456508,0.00684895,39259.0,39254.0,0.17468901]
[1645914456908,0.00684895,39259.0,39253.0,0.3070011]
[1645914457111,0.00684895,39259.0,39254.0,0.76425]
[1645914457609,0.00648928,39259.0,39254.0,0.76425]
[1645914457909,0.00684895,39259.0,39254.0,0.76425]
[1645914458510,0.00594295,39259.0,39254.0,0.76425]
[1645914458709,0.00558328,39259.0,39254.0,0.76425]
[1645914459113,0.0059429,39259.0,39254.0,0.76425]
[1645914459952,0.00558328,39259.0,39254.0,0.76425]
[1645914460148,0.0059429,39259.0,39254.0,0.76425]
[1645914460847,6.3e-05,39258.0,39254.0,0.76425]
[1645914461653,6.3e-05,39258.0,39254.0,0.76418154]
[1645914462653,6.3e-05,39258.0,39254.0,0.1900096]
[1645914463704,6.3e-05,39258.0,39254.0,0.2400096]
[1645914465010,6.3e-05,39258.0,39256.0,0.19446639]
[1645914465607,6.3e-05,39258.0,39256.0,0.24446639]
[1645914469357,6.3e-05,39258.0,39256.0,0.05]
[1645914469758,6.3e-05,39258.0,39254.0,0.1900096]
[1645914469759,0.95,39256.0,39254.0,0.2900096]
[1645914472801,6.3e-05,39255.0,39254.0,0.2900096]
[1645914490157,0.00035983,39259.0,39254.0,0.3900096]
[1645914490464,0.00035983,39259.0,39255.0,0.05]
[1645914490656,0.00035983,39259.0,39254.0,0.3408096]
[1645914490861,0.00035983,39259.0,39254.0,0.2897096]
[1645914491254,0.26588662,39261.0,39254.0,0.2897096]
[1645914491463,0.00036459,39259.0,39254.0,0.2897096]
[1645914492355,0.26588662,39262.0,39254.0,0.2897096]
[1645914492554,0.2844859,39251.0,39250.0,0.1]
[1645914493607,0.2844859,39251.0,39247.0,0.1]
[1645914493806,0.2844859,39251.0,39248.0,0.76435]
[1645914494311,0.2844859,39251.0,39249.0,0.08]
[1645914495105,0.2844859,39251.0,39250.0,0.08]
[1645914499160,0.2844859,39251.0,39250.0,0.13]
[1645914499363,0.2844859,39251.0,39250.0,0.18]
[1645914499861,0.2844859,39251.0,39250.0,0.175]
[1645914500464,0.2844859,39251.0,39250.0,0.08]
[1645914501908,0.2344859,39251.0,39250.0,0.08]
[1645914502313,0.2344859,39251.0,39250.0,0.13]
[1645914502512,0.2344859,39251.0,39250.0,0.18]
[1645914503010,0.2344859,39251.0,39250.0,0.08]
[1645914508507,0.22852664,39251.0,39250.0,0.08]
[1645914511814,0.22852664,39251.0,39250.0,0.0795492]
[1645914514259,0.20352664,39251.0,39250.0,0.0795492]
[1645914522664,0.20352664,39251.0,39248.0,0.26959831]
[1645914523265,0.20352664,39251.0,39250.0,0.25]
[1645914530757,0.20352664,39251.0,39250.0,0.2495491]
[1645914531806,0.46840683,39249.0,39248.0,0.26959831]
[1645914543564,0.46840683,39249.0,39238.0,0.27795331]
[1645914543769,0.46840683,39249.0,39243.0,0.001]
[1645914545072,0.46840683,39249.0,39243.0,0.063725]
[1645914552863,0.02745,39241.0,39240.0,0.01019]
[1645914553910,0.02745,39241.0,39240.0,0.073918]
[1645914554110,0.02745,39241.0,39240.0,0.123918]
[1645914554311,0.02745,39241.0,39240.0,0.163728]
[1645914554714,0.02745,39241.0,39240.0,0.173908]
[1645914555110,0.02745,39241.0,39240.0,0.163728]
[1645914557016,0.02669501,39241.0,39240.0,0.163728]
[1645914560575,0.02669501,39241.0,39240.0,0.173908]
[1645914562809,0.02669501,39241.0,39240.0,0.199278]
[1645914564959,0.02669501,39241.0,39240.0,0.173908]
[1645914570313,0.02669501,39241.0,39240.0,0.163728]
[1645914571414,0.02669501,39241.0,39240.0,0.214828]
[1645914578411,0.02669501,39241.0,39240.0,0.27854746]
[1645914579857,0.02169501,39241.0,39240.0,0.27854746]
[1645914585607,0.02169501,39241.0,39240.0,0.23762746]
[1645914585808,0.02169501,39241.0,39240.0,0.163728]
[1645914593911,0.02169501,39241.0,39240.0,0.2274472]
[1645914597864,0.02169501,39241.0,39240.0,0.163728]
[1645914602669,0.02161463,39241.0,39240.0,0.163728]
[1645914609311,0.02161463,39241.0,39240.0,0.18158188]
[1645914616916,0.01661463,39241.0,39240.0,0.18158188]
[1645914619960,0.01661463,39241.0,39240.0,0.5006861]
[1645914621013,0.01661463,39241.0,39240.0,0.18158188]
[1645914622314,0.01661463,39241.0,39240.0,0.08158188]
[1645914623513,0.01661463,39241.0,39240.0,0.13158188]
[1645914633958,0.01661463,39241.0,39240.0,0.18158188]
[1645914638716,0.01661463,39241.0,39240.0,0.17658188]
[1645914640664,0.01661463,39241.0,39240.0,0.12658188]
[1645914646626,0.01661463,39241.0,39240.0,0.4956861]
[1645914646824,0.01661463,39241.0,39240.0,0.17658188]
[1645914647267,0.01661463,39241.0,39240.0,0.22768188]
[1645914648667,0.01661463,39241.0,39240.0,0.23786188]
[1645914648866,0.01661463,39241.0,39240.0,0.5569661]
[1645914650466,0.01161463,39241.0,39240.0,0.5569661]
[1645914653518,0.01161463,39241.0,39240.0,0.5467861]
[1645914658072,0.01161463,39241.0,39240.0,0.5569661]
[1645914660216,0.01161463,39241.0,39240.0,0.62068204]
[1645914661216,0.01161463,39241.0,39240.0,0.56958204]
[1645914667130,0.01161463,39241.0,39240.0,0.62068204]
[1645914668127,0.01161463,39241.0,39240.0,1.39508204]
[1645914671766,0.01161463,39241.0,39240.0,1.07597782]
[1645914672466,0.01153209,39241.0,39240.0,1.07597782]
[1645914674016,0.25217619,39254.0,39240.0,1.07597782]
[1645914674216,0.66631375,39255.0,39245.0,0.063719]
[1645914674419,0.1,39255.0,39245.0,0.063719]
[1645914674615,0.31780732,39254.0,39250.0,0.00892694]
[1645914674821,0.13570776,39246.0,39245.0,0.113719]
[1645914675022,0.13570776,39246.0,39245.0,0.163719]
[1645914680877,0.12070776,39246.0,39245.0,0.163719]
[1645914681518,0.11980426,39246.0,39245.0,0.163719]
[1645914681917,0.10480426,39246.0,39245.0,0.163719]
[1645914684972,0.10480426,39246.0,39245.0,0.1632697]
[1645914699767,0.10480426,39246.0,39245.0,0.9276897]
[1645914704619,0.10384324,39246.0,39245.0,0.9276897]
[1645914719018,0.10384324,39246.0,39245.0,0.92758358]
[1645914719821,0.10384324,39246.0,39245.0,0.97868358]
[1645914723874,0.10384324,39246.0,39245.0,1.13477445]
[1645914724079,0.10384324,39246.0,39245.0,0.97868358]
[1645914724476,0.10384324,39246.0,39245.0,1.13477445]
[1645914728521,0.09884324,39246.0,39245.0,1.13477445]
[1645914729124,0.09884324,39246.0,39245.0,0.97868358]
[1645914729523,0.09884324,39246.0,39245.0,1.13464442]
[1645914729784,0.09884324,39246.0,39245.0,0.97868358]
[1645914729983,0.09884324,39246.0,39245.0,1.40291095]